bitfinex/quotes_SOLUSD_20250212
["timestamp","ask_amount","ask_price","bid_price","bid_amount"]
[1739373780310,5.0,192.78,192.77,46.73163179]
[1739373780812,5.0,192.78,192.77,46.35516179]
[1739373781012,5.0,192.78,192.76,46.35516179]
[1739373781516,5.0,192.78,192.74,46.48065179]
[1739373781715,5.0,192.78,192.75,46.35516179]
[1739373782039,5.0,192.78,192.77,46.48065179]
[1739373782227,5.0,192.78,192.77,46.73163179]
[1739373782721,5.0,192.78,192.77,46.48065179]
[1739373783845,5.0,192.78,192.77,46.73163179]
[1739373784142,5.0,192.78,192.77,51.79364179]
[1739373785621,5.0,192.78,192.77,33.89087021]
[1739373785826,5.0,192.78,192.74,33.64039021]
[1739373786024,5.0,192.78,192.74,5.188]
[1739373786345,5.0,192.78,192.77,20.37647]
[1739373786522,5.0,192.78,192.77,35.0027676]
[1739373786717,5.0,192.78,192.77,20.37647]
[1739373787638,5.0,192.78,192.75,28.45239021]
[1739373788146,5.03,192.78,192.73,28.45239021]
[1739373788348,5.03,192.78,192.74,0.12549]
[1739373788537,5.03,192.78,192.77,28.45239021]
[1739373788722,5.03,192.78,192.77,28.70337021]
[1739373788923,5.03,192.78,192.77,28.57788021]
[1739373789124,5.03,192.78,192.75,28.45239021]
[1739373789544,5.03,192.78,192.76,28.45239021]
[1739373789851,5.03,192.78,192.77,28.57788021]
[1739373790220,5.03,192.78,192.77,28.82886021]
[1739373790420,5.03,192.78,192.77,42.36619874]
[1739373790745,5.03,192.78,192.77,28.82886021]
[1739373791441,5.03,192.78,192.77,34.01636021]
[1739373792057,5.03,192.78,192.77,47.55369874]
[1739373792221,5.03,192.78,192.77,76.00608895]
[1739373792424,5.0,192.81,192.8,20.50196]
[1739373792643,5.0,192.81,192.8,78.49552699]
[1739373792950,0.03,192.82,192.81,0.37647]
[1739373793120,0.03,192.82,192.81,28.82886021]
[1739373793320,0.03,192.82,192.81,34.01526021]
[1739373794077,0.03,192.82,192.81,33.88977021]
[1739373794266,0.03,192.82,192.81,33.76428021]
[1739373794421,0.03,192.82,192.81,28.57788021]
[1739373795037,0.03,192.82,192.81,28.82886021]
[1739373795241,0.03,192.82,192.81,33.88977021]
[1739373795458,0.03,192.82,192.8,28.45239021]
[1739373795772,0.03,192.82,192.81,28.57788021]
[1739373795947,0.03,192.82,192.81,28.82886021]
[1739373796350,0.03,192.82,192.81,28.45239021]
[1739373796550,0.03,192.82,192.79,1.08884479]
[1739373796551,0.03,192.82,192.79,28.45239021]
[1739373796875,0.03,192.82,192.79,0.12549]
[1739373797081,0.03,192.82,192.81,28.57788021]
[1739373797374,0.03,192.82,192.81,0.12549]
[1739373797868,0.03,192.82,192.77,28.45239021]
[1739373798037,0.03,192.82,192.72,1.08907951]
[1739373798038,0.03,192.82,192.78,28.45239021]
[1739373798470,0.03,192.82,192.77,0.12549]
[1739373798471,0.03,192.82,192.79,28.45239021]
[1739373798973,0.03,192.82,192.77,28.45239021]
[1739373799182,28.45239021,192.8,192.73,28.45239021]
[1739373799386,6.1101,192.81,192.7,28.51539021]
[1739373799387,28.45239021,192.77,192.7,28.51539021]
[1739373799547,28.45239021,192.75,192.7,0.063]
[1739373799749,28.45239021,192.76,192.7,0.18849]
[1739373800068,28.45239021,192.76,192.73,0.063]
[1739373800267,28.45239021,192.78,192.73,0.063]
[1739373800475,30.05509021,192.79,192.73,0.063]
[1739373800765,28.45239021,192.78,192.73,0.063]
[1739373801352,1.6027,192.79,192.75,28.45239021]
[1739373801550,1.6027,192.79,192.76,28.45239021]
[1739373802552,1.6027,192.79,192.75,28.45239021]
[1739373802751,1.6027,192.79,192.77,28.57788021]
[1739373802951,0.03,192.81,192.79,0.12549]
[1739373803161,0.03,192.81,192.78,28.45239021]
[1739373804362,0.03,192.81,192.79,28.45239021]
[1739373804566,0.03,192.81,192.73,0.063]
[1739373804567,28.45239021,192.8,192.73,0.063]
[1739373804868,28.45239021,192.79,192.73,0.063]
[1739373805063,1.556,192.8,192.75,28.45239021]
[1739373805377,30.00839021,192.8,192.74,28.45239021]
[1739373805584,28.45239021,192.77,192.73,0.063]
[1739373806782,28.45239021,192.76,192.73,0.063]
[1739373807077,28.45239021,192.75,192.73,0.063]
[1739373808179,28.45239021,192.77,192.73,0.063]
[1739373808480,28.45239021,192.76,192.73,0.063]
[1739373809092,28.45239021,192.75,192.73,0.063]
[1739373809381,3.8902,192.79,192.73,0.063]
[1739373809382,36.29549021,192.74,192.73,0.063]
[1739373810177,1.6398,192.74,192.73,0.063]
[1739373810392,30.09219021,192.74,192.73,0.063]
[1739373810701,1.6398,192.74,192.73,0.063]
[1739373811170,3.1963,192.74,192.73,0.063]
[1739373812771,1.6398,192.74,192.73,0.063]
[1739373812964,3.1963,192.74,192.73,0.063]
[1739373813169,1.6398,192.74,192.73,0.063]
[1739373813879,31.64869021,192.74,192.73,0.063]
[1739373814965,3.1963,192.74,192.73,0.063]
[1739373815181,1.5562,192.77,192.73,0.063]
[1739373815364,30.00859021,192.77,192.73,0.063]
[1739373815778,3.1595,192.78,192.74,28.45239021]
[1739373816096,1.6034,192.78,192.74,28.45239021]
[1739373816293,1.5859,192.81,192.75,28.45239021]
[1739373816499,0.03,192.81,192.8,28.70337021]
[1739373816991,0.03,192.81,192.8,33.89007021]
[1739373817570,0.03,192.81,192.8,34.01556021]
[1739373818005,0.03,192.81,192.8,62.46795042]
[1739373818210,0.03,192.81,192.8,34.01556021]
[1739373820404,0.03,192.81,192.8,62.46795042]
[1739373820599,0.03,192.81,192.8,63.55677332]
[1739373820807,0.03,192.81,192.8,62.46795042]
[1739373820993,0.03,192.81,192.8,34.01556021]
[1739373821623,0.03,192.81,192.8,62.46795042]
[1739373821916,0.03,192.81,192.8,57.26290574]
[1739373822606,0.0001,192.81,192.8,71.88911052]
[1739373822786,10.0,192.86,192.81,0.37647]
[1739373822984,10.0,192.86,192.85,25.84986787]
[1739373823182,10.0,192.86,192.85,31.03516787]
[1739373823399,10.0,192.86,192.82,5.1861]
[1739373823580,10.0,192.86,192.85,25.84986787]
[1739373823900,10.0,192.86,192.85,25.97535787]
[1739373824120,10.0,192.86,192.84,25.84986787]
[1739373824802,10.0,192.86,192.85,25.97535787]
[1739373825004,10.0,192.86,192.82,5.1861]
[1739373825005,10.0,192.86,192.84,25.84986787]
[1739373825409,10.0,192.86,192.83,5.1858]
[1739373825410,10.0,192.86,192.79,25.84986787]
[1739373825614,10.0,192.86,192.78,0.12549]
[1739373825781,10.0,192.86,192.78,0.37647]
[1739373826109,10.0,192.86,192.81,0.12549]
[1739373826416,10.0,192.86,192.82,1.08896071]
[1739373826585,10.0,192.86,192.83,25.84986787]
[1739373826902,10.0,192.86,192.82,25.84986787]
[1739373827210,27.38186787,192.85,192.78,25.84986787]
[1739373827512,25.84986787,192.84,192.77,25.84986787]
[1739373827681,7.7662,192.85,192.79,25.84986787]
[1739373828010,25.84986787,192.83,192.74,5.1881]
[1739373828183,25.84986787,192.82,192.75,25.84986787]
[1739373828508,7.7662,192.85,192.74,25.84986787]
[1739373828509,25.84986787,192.81,192.74,25.84986787]
[1739373828711,25.84986787,192.8,192.73,25.91286787]
[1739373828921,13.41184853,192.83,192.73,25.91286787]
[1739373828922,25.84986787,192.78,192.73,0.063]
[1739373829415,1.5562,192.77,192.73,0.063]
[1739373829883,27.40606787,192.77,192.73,0.063]
[1739373830583,27.40576787,192.81,192.74,25.84986787]
[1739373831198,25.84986787,192.79,192.73,0.063]
[1739373831511,25.84986787,192.75,192.73,0.063]
[1739373831887,25.84986787,192.77,192.73,0.063]
[1739373832393,14.96784853,192.8,192.73,0.063]
[1739373832394,25.84986787,192.76,192.73,0.063]
[1739373832591,25.84986787,192.75,192.73,0.063]
[1739373832801,25.84986787,192.76,192.73,0.063]
[1739373833005,25.84986787,192.78,192.73,0.063]
[1739373833597,27.40586787,192.79,192.73,0.063]
[1739373833809,1.556,192.79,192.73,25.91286787]
[1739373834011,25.84986787,192.81,192.74,25.84986787]
[1739373834309,1.5557,192.83,192.78,25.84986787]
[1739373834611,1.5557,192.83,192.77,25.84986787]
[1739373834985,1.5557,192.83,192.78,25.84986787]
[1739373835509,1.5556,192.84,192.78,25.84986787]
[1739373835705,27.40546787,192.84,192.77,25.84986787]
[1739373836517,27.40556787,192.83,192.77,25.84986787]
[1739373836695,1.5557,192.83,192.77,25.84986787]
[1739373836891,1.5557,192.83,192.78,25.84986787]
[1739373837713,25.84986787,192.83,192.76,31.03756787]
[1739373838026,25.84986787,192.8,192.73,25.91286787]
[1739373838192,25.84986787,192.78,192.73,0.063]
[1739373839017,25.84986787,192.76,192.73,0.063]
[1739373839382,25.84986787,192.77,192.73,0.063]
[1739373839710,1.5563,192.76,192.73,0.063]
[1739373840012,27.40616787,192.76,192.73,0.063]
[1739373840219,25.84986787,192.74,192.73,0.063]
[1739373840789,25.97535787,192.74,192.73,0.063]
[1739373841008,25.97535787,192.74,192.7,0.063]
[1739373841009,28.08359,192.71,192.7,0.063]
[1739373841195,67.3453064,192.71,192.7,0.063]
[1739373841516,53.80796787,192.71,192.7,0.063]
[1739373841694,55.36466787,192.71,192.7,0.063]
[1739373841897,27.36636787,192.76,192.7,0.063]
[1739373842104,25.84986787,192.74,192.7,0.063]
[1739373842310,25.84986787,192.71,192.7,0.063]
[1739373842618,39.3872064,192.71,192.7,0.063]
[1739373842930,40.5126964,192.71,192.7,0.063]
[1739373843427,26.5578,192.66,192.62,0.063]
[1739373843717,25.84986787,192.65,192.62,0.063]
[1739373844092,25.84986787,192.64,192.62,0.063]
[1739373844612,25.84986787,192.63,192.62,0.063]
[1739373845811,27.40716787,192.63,192.62,0.063]
[1739373846012,1.5572,192.66,192.62,0.063]
[1739373846207,25.84986787,192.67,192.62,0.063]
[1739373846920,25.84986787,192.66,192.62,0.063]
[1739373847097,25.84986787,192.65,192.62,0.063]
[1739373847493,25.84986787,192.63,192.62,0.063]
[1739373849296,25.84986787,192.64,192.62,0.063]
[1739373849520,25.84986787,192.66,192.62,0.063]
[1739373850597,25.84986787,192.63,192.62,0.063]
[1739373851216,25.84986787,192.63,192.61,0.063]
[1739373851217,40.6381864,192.63,192.61,0.063]
[1739373851421,41.6381864,192.62,192.61,0.063]
[1739373852516,27.40726787,192.62,192.61,0.063]
[1739373852825,1.5574,192.62,192.61,0.063]
[1739373853022,27.40726787,192.62,192.61,0.063]
[1739373855235,1.5574,192.62,192.61,0.063]
[1739373855607,27.40716787,192.64,192.61,0.063]
[1739373855804,1.5573,192.64,192.61,0.063]
[1739373856020,29.74266787,192.66,192.61,0.063]
[1739373856021,1.5572,192.66,192.61,25.91286787]
[1739373856223,1.6408,192.68,192.63,25.84986787]
[1739373856437,1.5566,192.72,192.66,25.84986787]
[1739373856737,1.5566,192.72,192.61,0.063]
[1739373856738,0.03,192.74,192.71,25.84986787]
[1739373856909,0.03,192.74,192.73,25.84986787]
[1739373857417,0.03,192.74,192.73,25.97535787]
[1739373857616,8.06581745,192.78,192.76,20.12549]
[1739373857819,8.06581745,192.78,192.77,26.22633787]
[1739373858119,6.02184441,192.85,192.81,0.25098]
[1739373858323,6.02184441,192.85,192.84,39.6381864]
[1739373858519,32.26326982,192.87,192.86,21.37647]
[1739373858724,48.39490473,192.9,192.89,1.25098]
[1739373859042,14.91117684,192.9,192.89,16.00223406]
[1739373859437,7.684e-05,192.9,192.89,16.00223406]
[1739373859735,0.03,192.93,192.92,25.55987]
[1739373859925,0.03,192.93,192.92,83.13944634]
[1739373860321,1.502,193.07,192.93,15.91380853]
[1739373860511,41.95414519,193.11,192.94,15.91380853]
[1739373860711,43.50764519,193.11,192.97,34.91380853]
[1739373860929,43.50754519,193.13,192.97,119.90985179]
[1739373861111,41.95414519,193.14,193.03,0.37647]
[1739373861315,1.5532,193.15,193.05,42.07963519]
[1739373861525,43.50734519,193.15,193.05,42.07963519]
[1739373861842,43.47364519,193.16,193.05,42.33061519]
[1739373862013,1.5195,193.16,193.05,42.33061519]
[1739373862212,41.95414519,193.15,193.05,42.33061519]
[1739373862426,1.5195,193.16,193.08,20.0]
[1739373862604,1.5195,193.16,193.1,41.95414519]
[1739373863121,41.95414519,193.2,193.13,41.95414519]
[1739373863329,41.95414519,193.23,193.16,41.95414519]
[1739373863633,1.0,193.24,193.09,8.92607179]
[1739373863852,0.26549,193.25,193.12,20.12549]
[1739373864140,0.14,193.25,193.12,20.12549]
[1739373864341,0.14,193.25,193.14,0.12549]
[1739373864514,0.14,193.25,193.15,0.12549]
[1739373864711,1.6924,193.25,193.19,41.95414519]
[1739373864907,1.6924,193.25,193.14,0.37647]
[1739373864908,0.14,193.25,193.21,41.95414519]
[1739373865138,0.14,193.25,193.22,41.95414519]
[1739373865519,0.14,193.25,193.24,41.95414519]
[1739373865843,0.14,193.25,193.24,43.20512519]
[1739373866013,71.95414519,193.5,193.33,1.0]
[1739373866014,1.0,193.42,193.33,1.0]
[1739373866213,1.551,193.42,193.36,41.95414519]
[1739373866423,1.551,193.42,193.37,42.95414519]
[1739373866626,1.551,193.42,193.41,20.0]
[1739373866832,1.0,193.49,193.41,42.95414519]
[1739373867015,1.0,193.49,193.44,41.95414519]
[1739373867214,1.0,193.49,193.47,20.0]
[1739373867416,4.8756,193.52,193.47,61.95414519]
[1739373867721,4.8756,193.52,193.4,41.95414519]
[1739373867722,1.5502,193.52,193.46,41.95414519]
[1739373867937,41.95414519,193.54,193.46,41.95414519]
[1739373868125,41.95414519,193.55,193.48,41.95414519]
[1739373869156,2.0664,193.57,193.42,0.12549]
[1739373869157,2.0664,193.57,193.51,41.95414519]
[1739373869348,41.95414519,193.56,193.49,41.95414519]
[1739373869647,41.95414519,193.53,193.51,7.78569169]
[1739373869940,1.0,193.65,193.51,7.78569169]
[1739373870143,41.95414519,193.58,193.53,7.78569169]
[1739373870457,20.0,193.54,193.53,7.78569169]
[1739373870624,41.95414519,193.54,193.53,7.78569169]
[1739373871024,2.0666,193.55,193.53,4.45249169]
[1739373871225,0.12549,193.54,193.5,15.57138339]
[1739373871527,84.15927038,193.51,193.5,15.57138339]
[1739373871849,42.20512519,193.51,193.5,15.57138339]
[1739373872154,41.95414519,193.51,193.5,15.57138339]
[1739373872558,83.90829038,193.51,193.5,15.57138339]
[1739373872725,20.0,193.47,193.37,1.0]
[1739373872924,41.95414519,193.41,193.36,1.0]
[1739373873147,41.95414519,193.44,193.38,1.0]
[1739373873349,2.0668,193.53,193.47,1.0]
[1739373873658,41.95414519,193.48,193.43,2.0]
[1739373873818,41.95414519,193.48,193.46,1.0]
[1739373874024,2.0668,193.53,193.46,1.0]
[1739373874025,41.95414519,193.52,193.47,1.0]
[1739373874239,2.0668,193.53,193.5,1.0]
[1739373874443,41.95414519,193.54,193.48,1.0]
[1739373874728,0.25098,193.53,193.43,1.0]
[1739373875046,7.2343,193.52,193.44,1.0]
[1739373875250,20.0,193.49,193.41,1.0]
[1739373875438,20.0,193.49,193.4,1.0]
[1739373875439,0.12549,193.49,193.4,1.0]
[1739373875648,0.25098,193.49,193.38,1.0]
[1739373875827,13.66282853,193.46,193.34,2.0]
[1739373876031,41.95414519,193.36,193.33,1.0]
[1739373876523,41.95414519,193.36,193.31,2.0]
[1739373876723,0.25098,193.43,193.33,2.0]
[1739373876724,41.95414519,193.39,193.33,2.0]
[1739373876940,41.95414519,193.38,193.32,2.0]
[1739373877131,41.95414519,193.35,193.3,1.0]
[1739373877342,41.95414519,193.33,193.31,2.0]
[1739373877549,41.95414519,193.33,193.26,41.95414519]
[1739373877550,2.0684,193.39,193.35,1.0]
[1739373877749,41.95414519,193.36,193.34,1.0]
[1739373877960,41.95414519,193.35,193.3,1.0]
[1739373878156,41.95414519,193.32,193.31,1.0]
[1739373878463,41.95414519,193.33,193.31,2.0]
[1739373878651,41.95414519,193.35,193.33,1.0]
[1739373878849,7.2392,193.39,193.32,1.0]
[1739373878850,41.95414519,193.34,193.32,1.0]
[1739373879173,41.95414519,193.33,193.32,1.0]
[1739373879553,2.0689,193.34,193.33,1.0]
[1739373879872,41.95414519,193.39,193.37,1.0]
[1739373880040,41.95414519,193.38,193.36,2.0]
[1739373880242,41.95414519,193.39,193.37,1.0]
[1739373880442,41.95414519,193.39,193.38,1.0]
[1739373880669,44.02204519,193.43,193.4,1.0]
[1739373880856,41.95414519,193.41,193.39,1.0]
[1739373881063,41.95414519,193.4,193.39,1.0]
[1739373881260,41.95414519,193.4,193.38,1.0]
[1739373881568,41.95414519,193.39,193.32,2.0]
[1739373881867,10.3348,193.52,193.39,2.0]
[1739373882166,2.0673,193.48,193.42,1.0]
[1739373882472,20.0,193.45,193.36,2.0]
[1739373882640,20.0,193.45,193.39,1.0]
[1739373883037,2.0678,193.44,193.36,1.0]
[1739373883240,2.0678,193.44,193.38,1.0]
[1739373884071,2.0678,193.44,193.41,1.0]
[1739373884576,1.07616271,193.49,193.44,1.0]
[1739373884577,44.02174519,193.46,193.44,1.0]
[1739373884741,41.95414519,193.45,193.41,1.0]
[1739373884942,2.0676,193.46,193.41,1.0]
[1739373885142,2.0676,193.46,193.42,1.0]
[1739373885459,2.0676,193.46,193.36,5.1716]
[1739373885460,2.0676,193.46,193.41,1.0]
[1739373886274,2.0676,193.46,193.42,1.0]
[1739373886453,41.95414519,193.44,193.43,1.0]
[1739373887173,41.95414519,193.44,193.36,47.12564519]
[1739373887174,49.19154519,193.44,193.39,1.0]
[1739373887378,7.2374,193.44,193.38,1.0]
[1739373887577,7.2374,193.44,193.4,1.0]
[1739373887788,7.2374,193.44,193.39,1.0]
[1739373887971,20.0,193.41,193.31,1.0]
[1739373888283,5.1687,193.48,193.43,1.0]
[1739373888477,2.0675,193.47,193.45,1.0]
[1739373888648,2.0675,193.47,193.46,1.0]
[1739373888974,6.5524,193.59,193.49,1.0]
[1739373889186,2.0672,193.49,193.45,1.0]
[1739373889346,41.95414519,193.46,193.45,1.0]
[1739373889547,2.0669,193.52,193.48,1.0]
[1739373889748,2.0669,193.52,193.45,1.0]
[1739373889952,20.0,193.51,193.45,1.0]
[1739373890156,7.2343,193.52,193.45,1.0]
[1739373890563,7.2343,193.52,193.43,1.0]
[1739373890768,7.2343,193.52,193.44,1.0]
[1739373890947,41.95414519,193.45,193.44,1.0]
[1739373891145,41.95414519,193.45,193.42,1.0]
[1739373891146,41.95414519,193.47,193.46,1.0]
[1739373891860,2.067,193.51,193.5,1.0]
[1739373891861,44.02114519,193.51,193.5,1.0]
[1739373892060,0.03,193.54,193.52,1.0]
[1739373892061,44.02104519,193.53,193.52,1.0]
[1739373892256,44.02104519,193.53,193.5,1.0]
[1739373892462,41.95414519,193.52,193.5,1.0]
[1739373892651,2.0669,193.53,193.51,1.0]
[1739373892849,2.0669,193.53,193.52,1.0]
[1739373893063,0.03,193.54,193.53,2.0]
[1739373893361,2.0967,193.54,193.53,1.0]
[1739373893678,0.03,193.54,193.53,2.0]
[1739373894352,41.98414519,193.54,193.51,2.0]
[1739373894552,39.37191267,193.53,193.51,1.0]
[1739373894878,39.37191267,193.53,193.51,2.0]
[1739373895082,41.98414519,193.54,193.53,1.0]
[1739373895281,0.03,193.54,193.53,1.0]
[1739373895452,0.03,193.54,193.53,2.0]
[1739373895649,0.03,193.54,193.53,43.95414519]
[1739373895960,41.95414519,193.7,193.53,43.95414519]
[1739373895961,0.03,193.74,193.73,1.0]
[1739373897285,41.98414519,193.74,193.71,1.0]
[1739373897458,41.98414519,193.74,193.73,1.0]
[1739373897784,41.98414519,193.74,193.72,1.0]
[1739373898080,41.95414519,193.73,193.72,1.0]
[1739373899160,41.95414519,193.73,193.65,60.56721925]
[1739373899161,0.03,193.74,193.73,1.0]
[1739373899568,0.03,193.74,193.71,1.0]
[1739373899876,0.03,193.74,193.67,2.0]
[1739373900068,0.03,193.74,193.69,1.0]
[1739373900380,41.95414519,193.72,193.71,1.0]
[1739373900571,41.95414519,193.72,193.68,1.0]
[1739373900878,0.03,193.74,193.7,1.0]
[1739373901299,44.01914519,193.71,193.65,19.61307406]
[1739373901576,2.065,193.71,193.68,1.0]
[1739373901875,41.95414519,193.69,193.67,1.0]
[1739373902185,41.95414519,193.68,193.67,1.0]
[1739373902680,44.01934519,193.68,193.67,1.0]
[1739373903057,2.0652,193.68,193.67,1.0]
[1739373903358,44.01934519,193.68,193.66,1.0]
[1739373903559,41.95414519,193.67,193.66,1.0]
[1739373903884,2.0652,193.68,193.66,1.0]
[1739373903885,44.01934519,193.68,193.66,1.0]
[1739373904072,2.0649,193.71,193.7,1.0]
[1739373904674,0.03,193.74,193.68,1.0]
[1739373904675,0.03,193.74,193.71,1.0]
[1739373904879,0.03,193.74,193.73,1.0]
[1739373905663,41.98414519,193.74,193.73,1.0]
[1739373906264,0.03,193.74,193.73,2.0]
[1739373906853,0.03,193.74,193.73,43.95414519]
[1739373907361,2.0639,193.81,193.73,49.24143519]
[1739373907554,2.0639,193.81,193.8,2.0]
[1739373907757,44.01744519,193.86,193.85,1.0]
[1739373907975,2.0633,193.86,193.85,1.0]
[1739373908473,44.01744519,193.86,193.85,1.0]
[1739373908675,41.95414519,193.86,193.85,1.0]
[1739373908877,41.95414519,193.9,193.82,1.0]
[1739373908878,7.2201,193.9,193.82,1.0]
[1739373909075,12.5401,193.9,193.82,1.0]
[1739373909290,12.5401,193.9,193.83,1.0]
[1739373909590,41.95414519,193.84,193.81,1.0]
[1739373909772,41.95414519,193.82,193.79,2.0]
[1739373909976,41.95414519,193.8,193.79,2.0]
[1739373910188,49.17424519,193.9,193.8,1.0]
[1739373910189,41.95414519,193.81,193.8,1.0]
[1739373910493,2.0639,193.8,193.79,1.0]
[1739373910699,44.01804519,193.8,193.79,1.0]
[1739373910888,2.0638,193.82,193.8,2.0]
[1739373911077,2.0632,193.87,193.86,1.0]
[1739373911396,2.0632,193.87,193.86,2.0]
[1739373911586,2.0628,193.91,193.9,1.0]
[1739373911792,2.0628,193.91,193.88,1.0]
[1739373912097,5.1867,193.92,193.91,2.0]
[1739373912098,0.03,193.92,193.91,2.0]
[1739373912670,0.03,193.92,193.91,27.157]
[1739373912875,0.03,193.92,193.91,27.28249]
[1739373913181,9.09359858,194.01,194.0,2.0]
[1739373913583,9.09359858,194.01,194.0,1.8601]
[1739373914099,44.01554519,194.04,194.02,1.0]
[1739373914295,2.0614,194.04,194.03,0.8601]
[1739373914601,41.95414519,194.06,194.05,0.8601]
[1739373915098,41.95414519,194.06,194.03,1.8601]
[1739373915283,41.95414519,194.1,194.0,0.8601]
[1739373915284,41.95414519,194.04,194.0,0.8601]
[1739373915479,2.0613,194.05,194.01,0.8601]
[1739373915684,0.1399,194.18,194.09,0.8601]
[1739373915890,0.1399,194.18,194.1,0.8601]
[1739373915891,5.1504,194.16,194.1,0.8601]
[1739373916088,5.1504,194.16,194.11,0.8601]
[1739373916480,5.1504,194.16,194.13,0.8601]
[1739373916680,5.1504,194.16,194.1,0.8601]
[1739373916999,5.1504,194.16,194.11,0.8601]
[1739373917173,41.49108294,194.12,194.11,0.8601]
[1739373917371,2.0599,194.18,194.17,0.8601]
[1739373917790,2.0599,194.18,194.13,0.8601]
[1739373917995,2.0599,194.18,194.11,0.8601]
[1739373918210,0.12549,194.17,194.1,0.8601]
[1739373918384,2.0599,194.18,194.11,1.8601]
[1739373918586,17.5053,194.23,194.16,0.8601]
[1739373918891,7.2079,194.23,194.17,1.8601]
[1739373919092,41.49108294,194.18,194.16,0.8601]
[1739373919395,41.49108294,194.17,194.16,0.8601]
[1739373919709,7.2079,194.23,194.17,0.8601]
[1739373919872,7.2079,194.23,194.14,0.8601]
[1739373920078,20.0,194.19,194.09,1.8601]
[1739373920377,20.0,194.15,194.09,0.8601]
[1739373920581,20.0,194.19,194.09,0.8601]
[1739373920582,7.2112,194.14,194.11,0.8601]
[1739373920875,2.0603,194.14,194.1,1.8601]
[1739373921076,41.49108294,194.11,194.08,1.0]
[1739373921276,2.0603,194.14,193.98,6.5986]
[1739373921277,7.2112,194.14,194.11,0.8601]
[1739373921490,7.2112,194.14,194.11,0.7253]
[1739373921700,7.2112,194.14,194.07,1.7253]
[1739373921885,7.2112,194.14,193.98,6.5986]
[1739373921886,0.12549,194.13,194.05,1.7253]
[1739373922072,17.513,194.14,194.09,0.7253]
[1739373922272,7.2099,194.18,194.17,0.7253]
[1739373922676,10.297,194.23,194.19,0.7253]
[1739373922901,10.297,194.23,194.19,0.1349]
[1739373922902,41.49108294,194.2,194.19,0.1349]
[1739373923284,82.98216588,194.2,194.13,0.135]
[1739373923492,41.49108294,194.14,194.11,0.135]
[1739373923804,41.49108294,194.2,194.12,0.135]
[1739373924004,41.49108294,194.2,194.11,0.135]
[1739373924200,0.12549,194.19,194.1,0.135]
[1739373924379,20.0,194.17,194.1,0.135]
[1739373924579,20.0,194.17,194.03,1.5787]
[1739373924580,17.5121,194.15,194.08,0.135]
[1739373924994,41.49926623,194.09,194.08,0.135]
[1739373925711,41.49926623,194.09,194.01,61.34]
[1739373925712,48.71226623,194.09,194.01,61.34]
[1739373925916,41.49926623,194.07,194.01,102.83926623]
[1739373926115,2.0608,194.09,194.05,41.49926623]
[1739373926415,2.0605,194.12,194.03,1.0]
[1739373926737,2.0601,194.16,194.06,1.12549]
[1739373926892,7.2681,194.29,194.06,1.12549]
[1739373926893,8.29925355,194.29,194.1,0.25098]
[1739373927097,7.2072,194.25,194.09,2.65780899]
[1739373927400,41.49926623,194.16,194.1,41.49926623]
[1739373927788,41.49926623,194.2,194.13,41.49926623]
[1739373927986,2.0597,194.2,194.1,1.0]
[1739373928395,2.0597,194.2,194.09,1.5763]
[1739373928899,7.209,194.2,194.09,1.5763]
[1739373929089,41.49926623,194.13,194.09,1.5763]
[1739373929287,41.49926623,194.14,194.09,1.5763]
[1739373929497,41.49926623,194.11,194.05,41.49926623]
[1739373929793,43.56036623,194.07,194.02,1.6454]